Cogmind - Beta 17 @@@ ROGUE MODE // 2026.07.23 @ 13:17:06 Player: Akl Result: Destroyed by Z-Imprinter with Zionite Laser-M Performance ------------- Evolutions (1) 500 Regions Visited (6) 1200 Robots Destroyed (18) 90 Value Destroyed (374) 374 Prototype IDs (3) 60 Alien Tech Used (0) 0 Bonus (685) 685 TOTAL SCORE: 2909 Bonus ------- Follower Combat Kills 85 Met Imprinter 300 Was Imprinted 300 Cogmind --------- Core Integrity 0/400 Matter 229/300 Energy 87/100 System Corruption 0% Temperature Cool (39) Movement Core (800) Ox15 Location -7/Deep Caves Parts ------- > --- POWER (1) -------- (None) > --- PROPULSION (2) --- (None) > --- UTILITY (4) ------ Large Storage Unit Sensor Drone Bay (18/20) > --- WEAPON (2) ------- Heavy Missile Launcher Heavy Missile Launcher > --- INVENTORY (15) --- Light Ion Engine Improved Heat Sink Compact Matter Pod (150) Trap Scanner Sensor Array Signal Interpreter Terrain Scan Processor Transport Network Coupler Advanced ECM Suite Tractor Beam Mining Laser CR-A16's Pointy Stick Self-destruct Interrupter (50) Peak State ------------ > --- POWER ------------ Light Nuclear Core > --- PROPULSION ------- Light Treads Light Treads > --- UTILITY ---------- Large Storage Unit Structural Scanner Propulsion Shielding Sensor Drone Bay > --- WEAPON ----------- Improved Light Cannon CR-A16's Pointy Stick > --- INVENTORY -------- Light Ion Engine Improved Heat Sink Compact Matter Pod Weight Redist. System Trap Scanner Sensor Array Signal Interpreter Terrain Scan Processor Transport Network Coupler Advanced ECM Suite Tractor Beam Heavy Missile Launcher Heavy Missile Launcher Mining Laser Self-destruct Interrupter [Rating: 25] Favorites ----------- Power Light Nuclear Core Engine Ion Engine Power Core Light Nuclear Core Propulsion Light Treads Treads Light Treads Utility Large Storage Unit Device Structural Scanner Storage Large Storage Unit Protection Propulsion Shielding Weapon Improved Light Cannon Energy Gun EM Pulse Gun Ballistic Gun Assault Rifle Ballistic Cannon Improved Light Cannon Launcher Grenade Launcher Piercing Weapon CR-A16's Pointy Stick Build | -11 -10 -10 -9 -9 -7 -7 ------- Run | Yrd Mat Min Mat Min Zio Dee Slots Evolved 2 | . . . 2 . . . Power . | . . . . . . . Propulsion . | . . . . . . . Utility 2 | . . . 2 . . . Weapon . | . . . . . . . Parts Attached 20 | 7 5 . 2 2 1 3 Power 3 | 2 . . . 1 . . Engine 2 | 2 . . . . . . Core 1 | . . . . 1 . . Reactor . | . . . . . . . Propulsion 2 | 2 . . . . . . Treads 2 | 2 . . . . . . Leg . | . . . . . . . Wheel . | . . . . . . . Hover . | . . . . . . . Flight . | . . . . . . . Utility 7 | 1 2 . 2 1 . 1 Device 3 | . . . 1 1 . 1 Storage 3 | 1 1 . 1 . . . Processor . | . . . . . . . Hackware . | . . . . . . . Protection 1 | . 1 . . . . . Artifact . | . . . . . . . Weapon 8 | 2 3 . . . 1 2 Energy Gun 1 | 1 . . . . . . Energy Cannon . | . . . . . . . Ballistic Gun 1 | 1 . . . . . . Ballistic Cannon 2 | . 2 . . . . . Launcher 3 | . 1 . . . . 2 Special Weapon . | . . . . . . . Impact Weapon . | . . . . . . . Slashing Weapon . | . . . . . . . Piercing Weapon 1 | . . . . . 1 . Special Melee Weapon . | . . . . . . . Unidentified Prototypes 1 | . . . . 1 . . Parts Lost 7 | . . . . . . 7 Power 1 | . . . . . . 1 Propulsion 2 | . . . . . . 2 Utility 3 | . . . . . . 3 Weapon 1 | . . . . . . 1 Highest Loss Streak 7 | . . . . . . 7 To Critical Strikes . | . . . . . . . Average Backups 13 | 1 7 13 13 14 14 13 Power . | . 1 1 1 1 1 1 Propulsion . | . . . . . . . Utility 9 | . 4 10 10 10 10 9 Weapon 3 | . 2 2 2 3 3 2 Tool/Special . | . . . . . . . Unused Backups 15 | . 1 . . 2 3 9 Power . | . . . . . . . Propulsion . | . . . . . . . Utility 11 | . . . . 2 1 8 Weapon 4 | . 1 . . . 2 1 Tool/Special . | . . . . . . . Average Slot Usage (%) 99 | . 98 100 98 100 100 96 Engine 4 | . 14 14 11 9 . . Core 6 | . . . . 1 11 10 Treads 22 | . 28 28 22 22 22 20 Device 18 | . . . 10 21 22 22 Storage 11 | . 14 14 22 11 11 11 Protection 11 | . 12 14 10 11 11 10 Ballistic Cannon 17 | . 15 28 22 22 15 10 Piercing Weapon 4 | . . . . . 6 10 Peak Build Rating 25 | 6 11 11 15 22 25 25 Average Rating 20 | 4 8 11 14 20 24 24 On Entrance 12 | . 6 11 11 15 22 25 Avg Prop Armor Cover (%) 8 | . . . 9 8 8 . Naked Turns . | . . . . . . . Heaviest Build 49 | 14 34 34 36 49 49 48 Greatest Support 40 | 40 40 40 40 20 40 40 Greatest Overweight (x) 4 | . . . 1 2 2 4 Average Overweight (x) 1 | . . . . 1 1 1 Largest Inventory Capacity 15 | 8 15 15 15 15 15 15 Average Capacity 14 | 7 13 15 15 15 15 15 Most Carried 15 | 2 14 14 15 15 15 15 Average Carried 14 | 1 7 13 13 14 14 14 Final Capacity 15 | 8 15 15 15 15 15 15 Final Carried 15 | 2 13 14 15 15 15 13 Class Distribution -------------------- 100% | Mutant Dominant Class ---------------- Mutant | -10/Materials Mutant | -10/Mines Mutant | -9/Materials Mutant | -9/Mines Mutant | -7/Zion Mutant | -7/Deep Caves Resources | -11 -10 -10 -9 -9 -7 -7 ----------- Run | Yrd Mat Min Mat Min Zio Dee Matter Collected 688 | 180 275 53 79 91 10 . Remotely . | . . . . . . . Salvage Created 475 | . 241 12 171 51 . . Parts 31 | . 16 2 9 4 . . Haulers Intercepted 1 | . 1 . . . . . Recyclers Shooed 5 | . 4 . 1 . . . Parts Field Recycled . | . . . . . . . Retrieved Matter . | . . . . . . . Parts Self-Destructed 2 | . . . . . 2 . Prevented . | . . . . . . . Parts Restored . | . . . . . . . Kills | -11 -10 -10 -9 -9 -7 -7 ------- Run | Yrd Mat Min Mat Min Zio Dee Combat Hostiles Destroyed 12 | . 4 3 1 4 . . Cannons 11 | . 3 3 1 4 . . AOE 1 | . 1 . . . . . Classes Destroyed 7 | . 5 1 . 1 . . Builder 1 | . 1 . . . . . Hauler 1 | . 1 . . . . . Recycler 3 | . 1 . 2 . . . Watcher 1 | . 1 . . . . . Swarmer 6 | . . 3 . 3 . . Grunt 5 | . 4 . 1 . . . Duelist 1 | . . . . 1 . . Best Kill Streak 3 | . 3 3 3 3 . . Combat Bots Only 3 | . 2 3 1 3 . . Max Kills in Single Turn 2 | . 2 1 2 1 . . Gunslinging . | . . . . . . . Exploded 1 | . 1 . . . . . Melee . | . . . . . . . Uniques/NPCs Destroyed . | . . . . . . . Combat | -11 -10 -10 -9 -9 -7 -7 -------- Run | Yrd Mat Min Mat Min Zio Dee Hostile Shots Fired 134 | . 31 15 23 7 . 58 Missed 35 | . 9 2 8 . . 16 Hits 99 | . 22 13 15 7 . 42 Projectile 99 | . 22 13 15 7 . 42 Critical Strikes 2 | . 1 . 1 . . . Actively Blocked 2 | . 1 . 1 . . . Damage Taken 1953 | . 280 110 171 51 . 1341 Core 473 | . 39 10 45 7 . 372 Absorbed by Shields . | . . . . . . . Redirected to Shielding 107 | . 36 11 23 5 . 32 Regen/Repaired (Parts) 108 | . . . 47 . 61 . Core Remaining (%) 90 | 100 . 80 . . . . Volleys Fired 46 | . 20 7 5 10 . 4 Largest 2 | . 2 2 2 2 . 2 Hottest 78 | . 70 66 66 66 . 78 Shots Fired 89 | . 40 14 10 20 . 5 Gun 1 | . 1 . . . . . Cannon 83 | . 38 14 10 20 . 1 Launcher 5 | . 1 . . . . 4 Special . | . . . . . . . Kinetic 83 | . 38 14 10 20 . 1 Thermal . | . . . . . . . Explosive 5 | . 1 . . . . 4 Electromagnetic 1 | . 1 . . . . . Robot Hit Streak 7 | . 4 5 4 7 . 1 Robot Miss Streak 4 | . 4 2 2 4 . . Penetration Max . | . . . . . . . Secondary Targets . | . . . . . . . Shots Hit Robots 45 | . 19 9 5 11 . 1 Core Hits 30 | . 11 3 3 6 . 7 Critical Kills . | . . . . . . . Critical Parts Destroyed . | . . . . . . . Critical Strikes 1 | . . . . 1 . . Blast 1 | . . . . 1 . . Melee Attacks . | . . . . . . . Impact . | . . . . . . . Slashing . | . . . . . . . Piercing . | . . . . . . . Sneak Attacks . | . . . . . . . Combat Hostiles . | . . . . . . . Follow-up Attacks . | . . . . . . . Damage Inflicted 1772 | . 506 218 129 269 . 650 Guns . | . . . . . . . Cannons 1022 | . 399 218 123 258 . 24 Explosions 726 | . 100 . . . . 626 Melee . | . . . . . . . Ramming 24 | . 7 . 6 11 . . Kinetic 1022 | . 399 218 123 258 . 24 Thermal . | . . . . . . . Explosive 726 | . 100 . . . . 626 Electromagnetic . | . . . . . . . Impact . | . . . . . . . Slashing . | . . . . . . . Piercing . | . . . . . . . Highest Corruption . | . . . . . . . Average Corruption . | . . . . . . . Corruption Purged . | . . . . . . . Corruption Blocked . | . . . . . . . Overload Shots . | . . . . . . . Overflow Damage 51 | . . 6 . 12 . 33 Projectiles 18 | . . 6 . 12 . . Explosions 33 | . . . . . . 33 Melee . | . . . . . . . Knockbacks 15 | . 4 5 1 5 . . Impact . | . . . . . . . Kinetic 13 | . 4 3 1 5 . . Secondary 2 | . . 2 . . . . Self-Inflicted Damage 7 | . 7 . . . . . Shots 1 | . 1 . . . . . Rammed 9 | . 1 . 3 5 . . Targets Rammed 9 | . 1 . 3 5 . . Kicked . | . . . . . . . Crushed . | . . . . . . . Highest Temperature 51 | . 51 24 9 . . 30 Average Temperature 12 | . 13 11 6 . . 17 Received Heat Transfer 618 | . 159 . 81 . . 378 Siege Activations . | . . . . . . . Martial Activations . | . . . . . . . Shielding Activations . | . . . . . . . Robots Disrupted . | . . . . . . . Combat Hostiles . | . . . . . . . Robots Corrupted . | . . . . . . . Combat Hostiles . | . . . . . . . Parts Fried . | . . . . . . . Impact Corruptions . | . . . . . . . Robots Melted . | . . . . . . . Combat Hostiles . | . . . . . . . Parts Melted . | . . . . . . . Heat Transferred . | . . . . . . . Parts Sabotaged . | . . . . . . . Parts Stolen . | . . . . . . . Parts Stripped . | . . . . . . . Power Chain Reactions . | . . . . . . . Alert | -11 -10 -10 -9 -9 -7 -7 ------- Run | Yrd Mat Min Mat Min Zio Dee Maximum Alert Level . | . . . . . . . Low Security (%) 100 | 100 100 100 100 100 . . Level 1 . | . . . . . . . Level 2 . | . . . . . . . Level 3 . | . . . . . . . Level 4 . | . . . . . . . Level 5 . | . . . . . . . High Security . | . . . . . . . Max Security . | . . . . . . . Peak Influence 113 | . 113 70 40 62 . . Initial 25 | . . 25 11 . . . Average 16 | . 50 16 7 10 . . Influence Increases 496 | . 176 70 66 184 . . Destroy 0b10 Robot/C 300 | . 80 60 20 140 . . Destroy 0b10 Robot/NC 30 | . 20 . 10 . . . Destroy Leader 74 | . 24 10 10 30 . . Allied During Kill 12 | . . . . 12 . . Successful Hack 11 | . . . 11 . . . Disable Machine 45 | . 30 . 15 . . . Destroy Structure 9 | . 7 . . 2 . . Lose Combat Pursuer 15 | . 15 . . . . . Influence Decreases 496 | . 110 106 96 176 8 . Entered New Map 68 | . . 41 19 . 8 . Time Decay 428 | . 110 65 77 176 . . Squads Dispatched 3 | . 1 . 1 1 . . Investigation 2 | . 1 . 1 . . . Extermination . | . . . . . . . Reinforcement 1 | . . . . 1 . . Assault . | . . . . . . . Garrison . | . . . . . . . Intercept . | . . . . . . . Searches Triggered . | . . . . . . . Construction Impeded 1 | . . . . 1 . . Haulers Reinforced . | . . . . . . . Active Scanning Responses . | . . . . . . . Cargo Convoy Interrupts . | . . . . . . . Stealth | -11 -10 -10 -9 -9 -7 -7 --------- Run | Yrd Mat Min Mat Min Zio Dee Distress Signals 2 | . 2 . . . . . Communications Jammed . | . . . . . . . Distress Signals . | . . . . . . . Times Spotted 27 | . 11 3 4 6 . 3 Peak Tracking Total 6 | . 6 3 4 3 . 3 Tactical Retreats 1 | . 1 . . . . . Traps | -11 -10 -10 -9 -9 -7 -7 ------- Run | Yrd Mat Min Mat Min Zio Dee Traps Triggered 1 | . 1 . . . . . Indirectly . | . . . . . . . Trap Hack Attempts . | . . . . . . . Triggered . | . . . . . . . Disarmed . | . . . . . . . Reprogrammed . | . . . . . . . Reused . | . . . . . . . Traps Extracted . | . . . . . . . Installed . | . . . . . . . Triggered . | . . . . . . . Machines | -11 -10 -10 -9 -9 -7 -7 ---------- Run | Yrd Mat Min Mat Min Zio Dee Machines Disabled 3 | . 2 . 1 . . . Max in Single Turn 2 | . 2 . 1 . . . Machines Repaired . | . . . . . . . Machines Dismantled . | . . . . . . . Machines Sabotaged . | . . . . . . . Overloaded Fab Kills . | . . . . . . . Hacking | -11 -10 -10 -9 -9 -7 -7 --------- Run | Yrd Mat Min Mat Min Zio Dee Machines Accessed 7 | . 3 . 2 1 1 . Terminals 3 | . 2 . 1 . . . Fabricators . | . . . . . . . Repair Stations 1 | . . . 1 . . . Recycling Units 1 | . 1 . . . . . Scanalyzers . | . . . . . . . Garrison Access . | . . . . . . . Total Hacks 28 | . 11 . 13 1 3 . Successful 18 | . 6 . 8 1 3 . Failed 10 | . 5 . 5 . . . Catastrophic . | . . . . . . . Database Lockouts . | . . . . . . . Manual 4 | . . . . . 4 . Terminals 14 | . 9 . 5 . . . Fabricators . | . . . . . . . Repair Stations 8 | . . . 8 . . . Recycling Units 2 | . 2 . . . . . Scanalyzers . | . . . . . . . Garrison Access . | . . . . . . . Terminal Hacks 13 | . 5 . 4 1 3 . Record 3 | . 2 . 1 . . . Part Schematic 3 | . . . . . 3 . Robot Analysis 1 | . 1 . . . . . Prototype ID Bank 1 | . 1 . . . . . Open Door 1 | . . . . 1 . . Emergency Access Points 1 | . . . 1 . . . Locate Traps 1 | . . . 1 . . . Zone Layout 2 | . 1 . 1 . . . Fabricator Hacks . | . . . . . . . Repair Station Hacks 4 | . . . 4 . . . Scan Component 3 | . . . 3 . . . Repair 1 | . . . 1 . . . Recycling Unit Hacks 1 | . 1 . . . . . Retrieve Components 1 | . 1 . . . . . Scanalyzer . | . . . . . . . Garrison Access Hacks . | . . . . . . . Unauthorized Hacks . | . . . . . . . Terminals . | . . . . . . . Fabricators . | . . . . . . . Repair Stations . | . . . . . . . Recycling Units . | . . . . . . . Scanalyzers . | . . . . . . . Garrison Access . | . . . . . . . Data Cores Recovered . | . . . . . . . Used . | . . . . . . . Hacking Detections 4 | . 2 . 2 . . . Full Trace Events 1 | . . . 1 . . . Feedback Events . | . . . . . . . Feedback Blocked . | . . . . . . . Robot Schematics Acquired 3 | . . . . . 3 . Robots Built . | . . . . . . . Authchips . | . . . . . . . Time . | . . . . . . . Total Robot Build Rating . | . . . . . . . Part Schematics Acquired 18 | . . . . . 18 . Parts Built . | . . . . . . . Authchips . | . . . . . . . Time . | . . . . . . . Total Part Build Rating . | . . . . . . . Part Studies Acquired . | . . . . . . . Parts Repaired 1 | . . . 1 . . . Time 26 | . . . 26 . . . Parts Recycled . | . . . . . . . Recycled Matter . | . . . . . . . Retrieved Matter . | . . . . . . . Retrieved Components 9 | . 9 . . . . . Parts Scanalyzed . | . . . . . . . Part Schematics Acquired . | . . . . . . . Parts Damaged . | . . . . . . . Bothacking | -11 -10 -10 -9 -9 -7 -7 ------------ Run | Yrd Mat Min Mat Min Zio Dee Used RIF Installer . | . . . . . . . Robots Hacked . | . . . . . . . Non-combat . | . . . . . . . Combat . | . . . . . . . Robot Hacks Applied . | . . . . . . . Relay Couplers Released . | . . . . . . . Fabnet Peak Effective % . | . . . . . . . Robots Rewired . | . . . . . . . Allies Hacked . | . . . . . . . Hacks Repelled . | . . . . . . . Allies | -11 -10 -10 -9 -9 -7 -7 -------- Run | Yrd Mat Min Mat Min Zio Dee Total Allies 7 | . . . . 3 4 . Largest Group 6 | . . . . 3 6 2 Highest-Rated Group 185 | . . . . 40 185 32 Highest-Rated Ally 42 | . . . . 16 42 16 Total Orders 6 | . . . . 2 4 . EXPLORE 4 | . . . . 2 2 . RETURN 2 | . . . . . 2 . Ally Attacks 23 | . . . . 17 . 6 Total Damage 235 | . . . . 187 . 48 Kills 4 | . . . . 3 . 1 Allies Corrupted . | . . . . . . . Allies Melted . | . . . . . . . Intel | -11 -10 -10 -9 -9 -7 -7 ------- Run | Yrd Mat Min Mat Min Zio Dee Active Infowar (turns) 4973 | . . . 260 1527 2770 416 Structural 4973 | . . . 260 1527 2770 416 Robot Analysis Total 1 | . 1 . . . . . Derelict Logs Recovered 1 | . . . . 1 . . Drone Launches 7 | . . . . 2 2 3 Drone Recoveries 5 | . . . . 2 2 1 Exploration | -11 -10 -10 -9 -9 -7 -7 ------------- Run | Yrd Mat Min Mat Min Zio Dee Turns Passed 5709 | 66 370 281 261 1527 2770 434 Spaces Moved 2095 | 37 178 154 89 456 1006 175 Core 8 | 3 . . . . . 5 Treads 2087 | 34 178 154 89 456 1006 170 Legs . | . . . . . . . Wheels . | . . . . . . . Hover . | . . . . . . . Flight . | . . . . . . . Fastest Speed 50 | 50 160 160 160 240 240 240 Average Speed 257 | 151 160 160 211 316 273 240 Slowest Speed 320 | 160 160 160 240 320 320 250 Overloaded Moves . | . . . . . . . Propulsion Burnouts . | . . . . . . . Robots Hopped . | . . . . . . . Potential Cave-ins . | . . . . . . . Cave-ins Triggered . | . . . . . . . Exploration Rate (%) 40 | 3 27 40 16 79 90 25 Regions Visited 6 Branch Regions 4 Pre-discovered Areas 2 | . . . . . 2 . Known Exits Taken . | . . . . . . . Unknown Exits Taken 6 | 1 1 1 1 1 1 . Scrap Searched 3 | . . . . 1 2 . Spaces Dug . | . . . . . . . Terrain Destroyed 7 | . 5 . . 2 . . Melee . | . . . . . . . Projectile 4 | . 2 . . 2 . . AOE 3 | . 3 . . . . . Terrain Rammed . | . . . . . . . Walls Destroyed . | . . . . . . . Machines Disabled . | . . . . . . . Actions | -11 -10 -10 -9 -9 -7 -7 --------- Run | Yrd Mat Min Mat Min Zio Dee Total 2313 | 44 222 175 148 512 1030 182 Wait 110 | . 2 14 46 35 13 . Move 2089 | 36 177 153 88 455 1005 175 Hop . | . . . . . . . Pick Up 25 | 1 13 1 3 2 5 . Fast Attach 10 | 6 2 . 1 . 1 . Attach 4 | . . . 2 . . 2 Detach . | . . . . . . . Swap 7 | 1 3 . . 2 . 1 Drop 13 | . 4 . . 3 6 . Fire 46 | . 20 7 5 10 . 4 Melee . | . . . . . . . Ram . | . . . . . . . Kick . | . . . . . . . Crush 9 | . 1 . 3 5 . . Escape Stasis . | . . . . . . . Rewire . | . . . . . . . Trap . | . . . . . . . Miscellaneous . | . . . . . . . Route ------- -11/Scrapyard -10/Materials (discovered 2 exits: Mat / [*Min]) -10/Mines -9/Materials -9/Mines (discovered 3 exits: *Mat x2 / *Zio) -7/Zion (discovered 2 exits: [*Dee] / [*Pro]) -7/Deep Caves History --------- Turn | Location | Event 14 | -11/Scrapyard | Discovered new exit (range 16) 67 | -11/Scrapyard | Entered Materials 122 | -10/Materials | Discovered new exit (range 16) 310 | -10/Materials | Build established: Mutant 362 | -10/Materials | Discovered new exit (range 9) 437 | -10/Materials | Entered Mines 709 | -10/Mines | Discovered new exit (range 7) 718 | -10/Mines | Entered Materials 718 | -9/Materials | Evolved 2 slots: Utility x2 799 | -9/Materials | Repaired Propulsion Shielding 955 | -9/Materials | Discovered new exit (range 12) 979 | -9/Materials | Entered Mines 990 | -9/Mines | Found the Drone Emporium 1002 | -9/Mines | Found Prototype Device 1029 | -9/Mines | Identified Sensor Drone Bay 1147 | -9/Mines | Identified exit to Materials 1398 | -9/Mines | Assisted by bots powering up and referring to "LRC-V3" 1637 | -9/Mines | Found a hidden stash of uninstalled traps 2089 | -9/Mines | Received a Rocket Launcher from a helpful Derelict 2131 | -9/Mines | Discovered exit to Materials (range 5) 2250 | -9/Mines | A Derelict revealed a hidden shortcut to a safe place 2506 | -9/Mines | Entered Zion 2506 | -7/Zion | Accompanied by 2 allies 2636 | -7/Zion | Discovered new exit (range 12) 2948 | -7/Zion | Learned location of Warlord (-5) 3545 | -7/Zion | Found CR-A16's Pointy Stick 3633 | -7/Zion | Met Imprinter 4405 | -7/Zion | Acquired unknown access codes intercepted by a Zionite 4834 | -7/Zion | Imprinted 4837 | -7/Zion | Declared Zion's savior 5221 | -7/Zion | Opened final containment barrier to the Deep Caves 5252 | -7/Zion | Discovered new exit (range 5) 5257 | -7/Zion | Saw the warning signs outside the Deep Caves entrance 5276 | -7/Zion | Entered Deep Caves 5276 | -7/Deep Caves | Accompanied by 6 allies 5670 | -7/Deep Caves | Attacked by Z-Imprinter 5691 | -7/Deep Caves | Core integrity fell below 50% 5694 | -7/Deep Caves | Z-Facility disabled 5700 | -7/Deep Caves | Core integrity fell below 20% 5710 | -7/Deep Caves | Destroyed by Z-Imprinter with Zionite Laser-M Last Messages --------------- 05675_ Trooper 2b destroyed. 05679_ Propulsion Shielding destroyed. 05679_ Lgt. Treads destroyed. 05682_ Sensor Drone released from Sensor Drone Bay. 05682_ Lgt. Nuclear Core destroyed. 05683_ Sensor Drone released from Sensor Drone Bay. 05684_ WN-6OB(o) is busy at the terminal. 05684_ Sensor Drone retrieved by Sensor Drone Bay (no repairs). 05687_ Lgt. Treads destroyed. 05690_ Imp. Light Cannon destroyed. 05692_ Structural Scanner destroyed. 05694_ U0-KFP(o) is busy at the terminal. 05694_ Z-Facility disabled. 05694_ Sensor Drone destroyed. 05703_ Weight Redist. System destroyed. 05703_ Destroyed Prototype Hover Unit. 05707_ Destroyed Prototype Protection. Map ----- +----------------------------------------------------+ | | | | | | | | | | | | | | | | | | | | | ??????????????????????????######?????????????????? | | ??????????????????????############???????????????? | | ???????????????????? ###??#####????????? | | ????????????????????? ##########???##### | | ????????????????????? ###### ###?####### | | ?????????????????????? ## # ####### | | ????????????????????? ##### | | ????????????????????? | | ????????????????????? | | ?????????????????????? | | ???????????????????? | | ???????????????????? """"" | | ????????????????????"""""""" | | ????????????????????""""""" | | ???????????????????"""""" n I | | ???????????????????""""""@ z % | | ???????????????????"""""""" * z | | ????????????????????""""""" % %= | | ????????????????????"""""" | | ????????????????????"""""" | | ?????????????????????"" " " | | ??????????????????????""o %= | | ?????????????????????"" * | | ?????????????????????"""o | | ?????????????????????""" | | ??????????????????????"""" | | ??????????????????????""""""o | | ???????????????????????? | | ????????????????????????""" | | ?????????????????????????""" | | ?????????????????????????"""" ???? | | ???????????????????????????"" ??????? | | ????????????????????????????" ????????? | | ????????????????????????????? ???????????? | | ??????????????????????????????? ?????????????? | | ?????????????????????????????????????????????????? | | ?????????????????????????????????????????????????? | | ?????????????????????????????????????????????????? | | ?????????????????????????????????????????????????? | | ?????????????????????????????????????????????????? | +----------------------------------------------------+ Best States ------------- Heat Dissipation 28 Energy Generation 14 Energy Capacity 250 Matter Stores 450 Matter Capacity 450 Sight Range 16 Terrain Scan Density 10 Additional Mass Support 6 Propulsion Shielding 33 Evasion (%) 40 Recoil Reduction 2 Item Schematics ----------------- Remote Shield | -7/Zion | Archive Shock Absorption System | -7/Zion | Archive Component Analysis Suite | -7/Zion | Archive Arm. Leg | -7/Zion | Archive Hrd. Heavy Armor Plating | -7/Zion | Archive Adv. Signal Interpreter | -7/Zion | Archive Dynamic Insulation System | -7/Zion | Archive Hvy. Phase Cannon | -7/Zion | Archive Hvy. Treads | -7/Zion | Archive Arc Projector | -7/Zion | Archive Power Amplifier | -7/Zion | Archive Matter Filter | -7/Zion | Archive Magnetic Acceleration Cannon | -7/Zion | Archive Energy Well | -7/Zion | Archive Imp. Trap Extractor | -7/Zion | Archive Riot Gun | -7/Zion | Free Flamer | -7/Zion | Free Beamcaster | -7/Zion | Free Robot Schematics ------------------ T-07 Excavator | -7/Zion | Archive B-36 Bruiser | -7/Zion | Archive H-55 Commando | -7/Zion | Archive Fabricated ------------ Nothing Repaired ---------- Propulsion Shielding | 6% | -9/Materials Studied --------- None Alien Tech Used ----------------- None Achievements -------------- Adventurer Signs Are For Wimps Challenges ------------ None Game ------ Seed SalvageChromionObliterator Manual? 0 Play Time 00:26:12 Cumulative 29.4 hours Start 2026.07.23 @ 12:35:23 End 2026.07.23 @ 13:17:06 Sessions 1 Manual Loads 0 Difficulty Rogue Special Mode None Game No. 51 Rogue 51 Adventurer 0 Explorer 0 Win Type - Total 0 Types 0/0/0/0/0/0/0/0/0/0 Lore% 16 Gallery% 25 Achievement% 19 Wizard Run 0 Options --------- Layout 1 ASCII 0 Keyboard 0 Movement Mouse Keybinds 0 Fullscreen 1 Font 24/Smallcaps Map View 50x35 Zoom Use 0% Tactical HUD 1 Map Filters NONE Filters NONE Steam 1 RUN: 748e42f2-34ce-401c-980f-37d8bb2e7c70